Workbook

Sheet reportCreation (hidden)
B2: Printing: Please check which pages you'd like generated in the report

Sheet cmpLogo (hidden)

Sheet HOME_FORM
B5: Real Estate Investment Analysis Software
B9: Inputs | I9: Marketing Reports

Sheet Company Info (hidden)
A1: Your COMPANY Information
A2: Your Name | B2: [Enter Name]
A3: Your Company Name | B3: [Enter Company Name]
A4: Company Address | B4: [Enter Company Address]
A5: City, State, Zip | B5: [Enter City, State, Zip]
A6: Phone with Area Code | B6: [Enter Phone]
A8: PROPERTY Information
A9: Property Name | B9: [Enter Property Name]
A10: Property Street Address | B10: [Enter Property Street Address]
A11: City, State, Zip | B11: [Enter City, State, Zip]

Sheet General Assumptions (hidden)
B4: Real Estate Investment Analysis Software
B9: GENERAL ASSUMPTIONS
B11: Property
B12: Purhase Price | C12: 1000000
B13: *Closing Costs | C13: 10000
B14: Cash Reserves | C14: 2000
B15: Initial Improvements | C15: 5000
B16: Total Cost | C16: =C12+C13+C15 -> 1015000
B17: *Include commissions, legal, appraisal, home inspection, applicances
B19: Mortgage Details
B20: Down Payment % | C20: 0.3
B21: Total Equity Investment | C21: =C12*C20 -> 300000
B22: Total Loan Amount | C22: =C12-C21 -> 700000
B23: Interest Rate | C23: 0.0324
B24: **Mortgage Compounding Frequency | C24: 2
B25: Amortization (yrs) | C25: 25
B26: Total Number of Monthly Payments | C26: =C25*12 -> 300
B27: Mortgage Start Date | C27: 2020-07-01
B28: Monthly Mortgage Payment | C28: ='Amortization Schedule'!K18 -> 3399.519167
B29: **Enter 1 for Annually, 2 for Semi-Annually, 4 for Quarterly, 12 for Monthly
B31: Exit Assumptions
B32: Length of Hold (yrs) | C32: 7
B33: Annual Appreciation | C33: 0.03
B34: Projected Sale Price | C34: =C12*(1+C33)^MIN(C32,C32) -> 1229873.865
B35: less Closing Costs | C35: 0.06
B36: less Rehab Costs | C36: 2500
B37: Adjusted Sale Price | C37: =C34*(1-C35)-C36 -> 1153581.433
B39: Core Deal Assumptions
B40: Discount Rate (%) for NPV Calculation | C40: 0.06
B41: Rent Growth Rate (%/yr) | C41: 0.025
B42: Annual Property Appreciation (%) | C42: 0.03

Sheet Income Assumptions (hidden)
B4: Real Estate Investment Analysis Software
C8: INCOME ASSUMPTIONS
C10: Type of Property: | D10: Single Family
C12: RENT ROLL
C14: Unit Type | D14: Number of Units | E14: Lease Amount
B16: 1 | C16: =IF(D10="Type Of Property","",IF(ISNA(VLOOKUP(CONCATENATE(B16,D10),tblReference!C:D,2,FALSE)),"",VLOOKUP(CONCATENATE(B16,D10),tblReference!C:D,2,FALSE))) -> Single Family | D16: =IF(C16="","",VLOOKUP(C16,tblReference!D:F,2,FALSE)) -> 1 | E16: 6000
B17: =B16+1 -> 2 | C17: =IF(D10="Type Of Property","",IF(ISNA(VLOOKUP(CONCATENATE(B17,D10),tblReference!C:D,2,FALSE)),"",VLOOKUP(CONCATENATE(B17,D10),tblReference!C:D,2,FALSE))) ->  | D17: =IF(C17="","",VLOOKUP(C17,tblReference!D:F,2,FALSE)) -> 
B18: =B17+1 -> 3 | C18: =IF(D10="Type Of Property","",IF(ISNA(VLOOKUP(CONCATENATE(B18,D10),tblReference!C:D,2,FALSE)),"",VLOOKUP(CONCATENATE(B18,D10),tblReference!C:D,2,FALSE))) ->  | D18: =IF(C18="","",VLOOKUP(C18,tblReference!D:F,2,FALSE)) -> 
B19: 4
B20: 5
B21: 6
D37: =SUM(D16:D35) -> 1 | E37: =SUMPRODUCT(D16:D35,E16:E35) -> 6000
C39: OTHER INCOME
E41: Monthly Total
C42: Laundry | E42: 0
C43: Parking | E43: 0
C44: Vending Machines | E44: 0
C45: Other | E45: 0
E47: =SUM(E42:E46) -> 0
C49: GROSS RENTAL INCOME MONTHLY | E49: =E37+E47 -> 6000
C50: ANNUAL GROSS RENTAL INCOME | E50: =E49*12 -> 72000

Sheet Cover Page (hidden)
A5: Real Estate Investment Analysis Software
A16: RENTAL PROPERTY INVESTMENT PROPOSAL
B55: ='Company Info'!B2 -> [Enter Name]
B56: ='Company Info'!B3 -> [Enter Company Name]
B57: ='Company Info'!B4 -> [Enter Company Address]
B58: ='Company Info'!B5 -> [Enter City, State, Zip]

Sheet tblReference (hidden)
A1: Record Num (col B on inc. Assumption) | B1: Type Of Property | C1: Concatenate | D1: Unit Type | E1: Number Of Units | F1: Lease Amount
A2: 1 | B2: Single Family | C2: =CONCATENATE(A2,B2) -> 1Single Family | D2: Single Family | E2: 1 | F2: 6500
A3: 1 | B3: Multi-Tenant | C3: =CONCATENATE(A3,B3) -> 1Multi-Tenant | D3: 1 Bedroom | E3: 5 | F3: 450
A4: 2 | B4: Multi-Tenant | C4: =CONCATENATE(A4,B4) -> 2Multi-Tenant | D4: 2 Bedroom | E4: 8 | F4: 650
A5: 3 | B5: Multi-Tenant | C5: =CONCATENATE(A5,B5) -> 3Multi-Tenant | D5: 3 Bedroom | E5: 4 | F5: 1250

Sheet Executive Summary (hidden)
B5: Real Estate Investment Analysis Software
B8: Executive Summary
G18: ='Company Info'!B9 -> [Enter Property Name]
G19: ='Company Info'!B10 -> [Enter Property Street Address]
G20: ='Company Info'!B11 -> [Enter City, State, Zip]
B22: Property Overview | G22: Projected Cash Flow
B24: Type of Property | E24: ='Income Assumptions'!D10 -> Single Family
B25: Purchase Price | E25: ='General Assumptions'!C12 -> 1000000
B26: Closing Costs | E26: ='General Assumptions'!C13 -> 10000
B27: Cash Reserves | E27: ='General Assumptions'!C14 -> 2000
B28: Initial Improvements | E28: ='General Assumptions'!C15 -> 5000
B30: Total Acquisition Cost | E30: ='General Assumptions'!C16 -> 1015000
B32: Operating Cash Flow | E32: Year 1 | G32: Year 3 | I32: Year 7
B34: Total Annual Income | E34: ='Cash Flow Analysis'!D12 -> 72000 | G34: ='Cash Flow Analysis'!F12 -> 75645 | I34: ='Cash Flow Analysis'!J12 -> 83497.92611
B35: less Vacancy/Bad Debts | E35: ='Cash Flow Analysis'!D13 -> -3600 | G35: ='Cash Flow Analysis'!F13 -> -3782.25 | I35: ='Cash Flow Analysis'!J13 -> -4174.896306
B36: less Operating Expenses | E36: ='Cash Flow Analysis'!D14 -> -15084 | G36: ='Cash Flow Analysis'!F14 -> -15693.3936 | I36: ='Cash Flow Analysis'!J14 -> -16987.03393
B37: Net Operating Income (NOI) | E37: ='Cash Flow Analysis'!D15 -> 53316 | G37: ='Cash Flow Analysis'!F15 -> 56169.3564 | I37: ='Cash Flow Analysis'!J15 -> 62335.99587
B38: less Debt Service | E38: ='Cash Flow Analysis'!D16 -> -40794.23001 | G38: ='Cash Flow Analysis'!F16 -> -40794.23001 | I38: ='Cash Flow Analysis'!J16 -> -40794.23001
B39: less Capital Expenditures | E39: ='Cash Flow Analysis'!D17 -> -5000 | G39: ='Cash Flow Analysis'!F17 -> 0 | I39: ='Cash Flow Analysis'!J17 -> 0
B40: Annual Cash Flow | E40: ='Cash Flow Analysis'!D18 -> 7521.769993 | G40: ='Cash Flow Analysis'!F18 -> 15375.12639 | I40: ='Cash Flow Analysis'!J18 -> 21541.76587
B42: Return Measures | E42: Year 1 | G42: Year 3 | I42: Year 7
B43: Debt Service Coverage Ratio | E43: ='Cash Flow Analysis'!D40 -> 1.306949536 | G43: ='Cash Flow Analysis'!F40 -> 1.376894634 | I43: ='Cash Flow Analysis'!J40 -> 1.528059136
B44: Operating Expense Ratio | E44: ='Cash Flow Analysis'!D41 -> 0.2095 | G44: ='Cash Flow Analysis'!F41 -> 0.2074610827 | I44: ='Cash Flow Analysis'!J41 -> 0.203442585
B45: Capitalization Rate (Cap Rate) | E45: ='Cash Flow Analysis'!D42 -> 0.05252807882 | G45: ='Cash Flow Analysis'!F42 -> 0.05533926739 | I45: ='Cash Flow Analysis'!J42 -> 0.06141477426
B46: Cash-on-Cash Return (%) | E46: ='Cash Flow Analysis'!D43 -> 0.02372798105 | G46: ='Cash Flow Analysis'!F43 -> 0.048501976 | I46: ='Cash Flow Analysis'!J43 -> 0.06795509737
B48: Core Deal Assumptions | G48: Mortgage Summary
B49: Rental Growth Rate | E49: ='General Assumptions'!C41 -> 0.025 | G49: Total Loan Amount | I49: ='General Assumptions'!C22 -> 700000
B50: Expense Growth Rate | E50: ='Expense Assumptions'!D38 -> 0.02 | G50: Interest Rate | I50: ='General Assumptions'!C23 -> 0.0324
B51: Annual Vacancy | E51: ='Expense Assumptions'!D39 -> 0.05 | G51: Monthly Payment | I51: ='General Assumptions'!C28 -> 3399.519167
B52: Annual Property Appreciation | E52: ='General Assumptions'!C33 -> 0.03 | G52: Total Investment | I52: ='General Assumptions'!C21 -> 300000

Sheet Property Description (hidden)
B5: Real Estate Investment Analysis Software
B8: Property Overview
G18: ='Company Info'!B9 -> [Enter Property Name]
G19: ='Company Info'!B10 -> [Enter Property Street Address]
G20: ='Company Info'!B11 -> [Enter City, State, Zip]
B23: Enter Text Here [Double Click To Enter Box]

Sheet Property Photos (hidden)
B5: Real Estate Investment Analysis Software
B8: ='Company Info'!B9 -> [Enter Property Name]
B10: =CONCATENATE('Company Info'!B10,CHAR(10),'Company Info'!B11) -> [Enter Property Street Address] [Enter City, State, Zip]
B23: Enter Description | K23: Enter Description
B38: Enter Description | K38: Enter Description
B53: Enter Description | K53: Enter Description
B68: Enter Description | K68: Enter Description

Sheet Cash Flow Analysis (hidden)
B5: Real Estate Investment Analysis Software
B9: CASH FLOW ANALYSIS | U9: Pie Chart
U10: Annual Income | V10: =D18 -> 7521.769993
B11: Operating Cash Flow | D11: 1 | E11: =D11+1 -> 2 | F11: =E11+1 -> 3 | G11: 4 | H11: 5 | I11: 6 | J11: 7 | K11: =J11+1 -> 8 | L11: 9 | M11: 10 | U11: Vacancy/Bad Debts | V11: =-D13 -> 3600
B12: Total Annual Income | D12: ='Income Assumptions'!$E$49*12 -> 72000 | E12: =((D12*'General Assumptions'!$C$41)+D12)*IF(E11<='General Assumptions'!$C$32,1,0) -> 73800 | F12: =((E12*'General Assumptions'!$C$41)+E12)*IF(F11<='General Assumptions'!$C$32,1,0) -> 75645 | G12: =((F12*'General Assumptions'!$C$41)+F12)*IF(G11<='General Assumptions'!$C$32,1,0) -> 77536.125 | H12: =((G12*'General Assumptions'!$C$41)+G12)*IF(H11<='General Assumptions'!$C$32,1,0) -> 79474.52812 | I12: =((H12*'General Assumptions'!$C$41)+H12)*IF(I11<='General Assumptions'!$C$32,1,0) -> 81461.39133 | J12: =((I12*'General Assumptions'!$C$41)+I12)*IF(J11<='General Assumptions'!$C$32,1,0) -> 83497.92611 | K12: =((J12*'General Assumptions'!$C$41)+J12)*IF(K11<='General Assumptions'!$C$32,1,0) -> 0 | L12: =((K12*'General Assumptions'!$C$41)+K12)*IF(L11<='General Assumptions'!$C$32,1,0) -> 0 | M12: =((L12*'General Assumptions'!$C$41)+L12)*IF(M11<='General Assumptions'!$C$32,1,0) -> 0 | U12: Operating Expenses | V12: =-D14 -> 15084
B13: less Vacancy/Bad Debts | D13: =-D12*'Expense Assumptions'!$D$39 -> -3600 | E13: =-E12*'Expense Assumptions'!$D$39 -> -3690 | F13: =-F12*'Expense Assumptions'!$D$39 -> -3782.25 | G13: =-G12*'Expense Assumptions'!$D$39 -> -3876.80625 | H13: =-H12*'Expense Assumptions'!$D$39 -> -3973.726406 | I13: =-I12*'Expense Assumptions'!$D$39 -> -4073.069566 | J13: =-J12*'Expense Assumptions'!$D$39 -> -4174.896306 | K13: =-K12*'Expense Assumptions'!$D$39 -> 0 | L13: =-L12*'Expense Assumptions'!$D$39 -> 0 | M13: =-M12*'Expense Assumptions'!$D$39 -> 0 | U13: Debt Service | V13: =-D16 -> 40794.23001
B14: less Operating Expenses | D14: =-'Expense Assumptions'!$D$35 -> -15084 | E14: =((D14*'Expense Assumptions'!$D$38)+D14)*IF(E11<='General Assumptions'!$C$32,1,0) -> -15385.68 | F14: =((E14*'Expense Assumptions'!$D$38)+E14)*IF(F11<='General Assumptions'!$C$32,1,0) -> -15693.3936 | G14: =((F14*'Expense Assumptions'!$D$38)+F14)*IF(G11<='General Assumptions'!$C$32,1,0) -> -16007.26147 | H14: =((G14*'Expense Assumptions'!$D$38)+G14)*IF(H11<='General Assumptions'!$C$32,1,0) -> -16327.4067 | I14: =((H14*'Expense Assumptions'!$D$38)+H14)*IF(I11<='General Assumptions'!$C$32,1,0) -> -16653.95484 | J14: =((I14*'Expense Assumptions'!$D$38)+I14)*IF(J11<='General Assumptions'!$C$32,1,0) -> -16987.03393 | K14: =((J14*'Expense Assumptions'!$D$38)+J14)*IF(K11<='General Assumptions'!$C$32,1,0) -> 0 | L14: =((K14*'Expense Assumptions'!$D$38)+K14)*IF(L11<='General Assumptions'!$C$32,1,0) -> 0 | M14: =((L14*'Expense Assumptions'!$D$38)+L14)*IF(M11<='General Assumptions'!$C$32,1,0) -> 0 | U14: Capital Expenditures | V14: =-D17 -> 5000
B15: Net Operating Income (NOI) | D15: =D12+D13+D14 -> 53316 | E15: =E12+E13+E14 -> 54724.32 | F15: 56169.3564 | G15: 57652.05728 | H15: 59173.39502 | I15: 60734.36693 | J15: 62335.99587 | K15: =K12+K13+K14 -> 0 | L15: 0 | M15: 0
B16: less Debt Service | D16: ='Mortgage Summary'!C24+'Mortgage Summary'!C25 -> -40794.23001 | E16: ='Mortgage Summary'!D24+'Mortgage Summary'!D25 -> -40794.23001 | F16: ='Mortgage Summary'!E24+'Mortgage Summary'!E25 -> -40794.23001 | G16: ='Mortgage Summary'!F24+'Mortgage Summary'!F25 -> -40794.23001 | H16: ='Mortgage Summary'!G24+'Mortgage Summary'!G25 -> -40794.23001 | I16: ='Mortgage Summary'!H24+'Mortgage Summary'!H25 -> -40794.23001 | J16: ='Mortgage Summary'!I24+'Mortgage Summary'!I25 -> -40794.23001 | K16: ='Mortgage Summary'!J24+'Mortgage Summary'!J25 -> 0 | L16: ='Mortgage Summary'!K24+'Mortgage Summary'!K25 -> 0 | M16: ='Mortgage Summary'!L24+'Mortgage Summary'!L25 -> 0
B17: less Capital Expenditures | D17: =-'General Assumptions'!C15 -> -5000 | E17: 0 | F17: 0 | G17: 0 | H17: 0 | I17: 0 | J17: 0 | K17: 0 | L17: 0 | M17: 0
B18: Annual Cash Flow | D18: =D15+D16+D17 -> 7521.769993 | E18: =E15+E16+E17 -> 13930.08999 | F18: 15375.12639 | G18: 16857.82727 | H18: 18379.16501 | I18: 19940.13692 | J18: 21541.76587 | K18: =K15+K16+K17 -> 0 | L18: 0 | M18: 0
B20: Property Overview
B21: Purhase Price | C21: =-'General Assumptions'!C12 -> -1000000
B22: Add Closing Costs | C22: =-'General Assumptions'!C13 -> -10000
B23: Add Cash Reserves | C23: =-'General Assumptions'!C14 -> -2000
B24: Add Initial Improvements | C24: =-'General Assumptions'!C15 -> -5000
B25: Total Acquisition Cost | C25: =SUM(C21:C24) -> -1017000
B27: Property Resale Analysis | D27: 1 | E27: =D27+1 -> 2 | F27: =E27+1 -> 3 | G27: =F27+1 -> 4 | H27: =G27+1 -> 5 | I27: =H27+1 -> 6 | J27: =I27+1 -> 7 | K27: =J27+1 -> 8 | L27: =K27+1 -> 9 | M27: =L27+1 -> 10
B28: Projected Sale Price | D28: =IF(D11='General Assumptions'!$C$32,'General Assumptions'!$C$34,'General Assumptions'!C12+'General Assumptions'!C12*'General Assumptions'!C42)*IF(D11>'General Assumptions'!$C$32,0,1) -> 1030000 | E28: =IF(E11='General Assumptions'!$C$32,'General Assumptions'!$C$34,D28+D28*'General Assumptions'!$C$42)*IF(E11>'General Assumptions'!$C$32,0,1) -> 1060900 | F28: =IF(F11='General Assumptions'!$C$32,'General Assumptions'!$C$34,E28+E28*'General Assumptions'!$C$42)*IF(F11>'General Assumptions'!$C$32,0,1) -> 1092727 | G28: =IF(G11='General Assumptions'!$C$32,'General Assumptions'!$C$34,F28+F28*'General Assumptions'!$C$42)*IF(G11>'General Assumptions'!$C$32,0,1) -> 1125508.81 | H28: =IF(H11='General Assumptions'!$C$32,'General Assumptions'!$C$34,G28+G28*'General Assumptions'!$C$42)*IF(H11>'General Assumptions'!$C$32,0,1) -> 1159274.074 | I28: =IF(I11='General Assumptions'!$C$32,'General Assumptions'!$C$34,H28+H28*'General Assumptions'!$C$42)*IF(I11>'General Assumptions'!$C$32,0,1) -> 1194052.297 | J28: =IF(J11='General Assumptions'!$C$32,'General Assumptions'!$C$34,I28+I28*'General Assumptions'!$C$42)*IF(J11>'General Assumptions'!$C$32,0,1) -> 1229873.865 | K28: =IF(K11='General Assumptions'!$C$32,'General Assumptions'!$C$34,J28+J28*'General Assumptions'!$C$42)*IF(K11>'General Assumptions'!$C$32,0,1) -> 0 | L28: =IF(L11='General Assumptions'!$C$32,'General Assumptions'!$C$34,K28+K28*'General Assumptions'!$C$42)*IF(L11>'General Assumptions'!$C$32,0,1) -> 0 | M28: =IF(M11='General Assumptions'!$C$32,'General Assumptions'!$C$34,L28+L28*'General Assumptions'!$C$42)*IF(M11>'General Assumptions'!$C$32,0,1) -> 0
B29: less Commission & Selling Costs | D29: =-D28*'General Assumptions'!$C$35 -> -61800 | E29: =-E28*'General Assumptions'!$C$35 -> -63654 | F29: =-F28*'General Assumptions'!$C$35 -> -65563.62 | G29: =-G28*'General Assumptions'!$C$35 -> -67530.5286 | H29: =-H28*'General Assumptions'!$C$35 -> -69556.44446 | I29: =-I28*'General Assumptions'!$C$35 -> -71643.13779 | J29: =-J28*'General Assumptions'!$C$35 -> -73792.43193 | K29: =-K28*'General Assumptions'!$C$35 -> 0 | L29: =-L28*'General Assumptions'!$C$35 -> 0 | M29: =-M28*'General Assumptions'!$C$35 -> 0
B30: less Rehab Costs | D30: =IF(D27='General Assumptions'!$C$32,'General Assumptions'!$C$36,0) -> 0 | E30: =IF(E27='General Assumptions'!$C$32,'General Assumptions'!$C$36,0) -> 0 | F30: =IF(F27='General Assumptions'!$C$32,'General Assumptions'!$C$36,0) -> 0 | G30: =IF(G27='General Assumptions'!$C$32,'General Assumptions'!$C$36,0) -> 0 | H30: =IF(H27='General Assumptions'!$C$32,'General Assumptions'!$C$36,0) -> 0 | I30: =IF(I27='General Assumptions'!$C$32,'General Assumptions'!$C$36,0) -> 0 | J30: =IF(J27='General Assumptions'!$C$32,'General Assumptions'!$C$36,0) -> 2500 | K30: =IF(K27='General Assumptions'!$C$32,'General Assumptions'!$C$36,0) -> 0 | L30: =IF(L27='General Assumptions'!$C$32,'General Assumptions'!$C$36,0) -> 0 | M30: =IF(M27='General Assumptions'!$C$32,'General Assumptions'!$C$36,0) -> 0
B31: Adjusted Sale Price | D31: =(D28+D29+D30) -> 968200 | E31: =(E28+E29+E30) -> 997246 | F31: 1027163.38 | G31: 1057978.281 | H31: 1089717.63 | I31: 1122409.159 | J31: 1158581.433 | K31: =(K28+K29+K30) -> 0 | L31: 0 | M31: 0
B33: add Mortgage Balance | C33: ='General Assumptions'!C22 -> 700000
B34: less Mortgage Balance Payoff | D34: =-IF(D11='General Assumptions'!$C$32,-SUMIF('Mortgage Summary'!22:22,'Cash Flow Analysis'!D11,'Mortgage Summary'!26:26),'Mortgage Summary'!C27) -> -681462.3207 | E34: =-IF(E11='General Assumptions'!$C$32,-SUMIF('Mortgage Summary'!22:22,'Cash Flow Analysis'!E11,'Mortgage Summary'!26:26),'Mortgage Summary'!D27) -> -662319.1555 | F34: =-IF(F11='General Assumptions'!$C$32,-SUMIF('Mortgage Summary'!22:22,'Cash Flow Analysis'!F11,'Mortgage Summary'!26:26),'Mortgage Summary'!E27) -> -642550.7278 | G34: =-IF(G11='General Assumptions'!$C$32,-SUMIF('Mortgage Summary'!22:22,'Cash Flow Analysis'!G11,'Mortgage Summary'!26:26),'Mortgage Summary'!F27) -> -622136.615 | H34: =-IF(H11='General Assumptions'!$C$32,-SUMIF('Mortgage Summary'!22:22,'Cash Flow Analysis'!H11,'Mortgage Summary'!26:26),'Mortgage Summary'!G27) -> -601055.7276 | I34: =-IF(I11='General Assumptions'!$C$32,-SUMIF('Mortgage Summary'!22:22,'Cash Flow Analysis'!I11,'Mortgage Summary'!26:26),'Mortgage Summary'!H27) -> -579286.2869 | J34: =-IF(J11='General Assumptions'!$C$32,-SUMIF('Mortgage Summary'!22:22,'Cash Flow Analysis'!J11,'Mortgage Summary'!26:26),'Mortgage Summary'!I27) -> -556805.8031 | K34: =-IF(K11='General Assumptions'!$C$32,-SUMIF('Mortgage Summary'!22:22,'Cash Flow Analysis'!K11,'Mortgage Summary'!26:26),'Mortgage Summary'!J27) -> 0 | L34: =-IF(L11='General Assumptions'!$C$32,-SUMIF('Mortgage Summary'!22:22,'Cash Flow Analysis'!L11,'Mortgage Summary'!26:26),'Mortgage Summary'!K27) -> 0 | M34: =-IF(M11='General Assumptions'!$C$32,-SUMIF('Mortgage Summary'!22:22,'Cash Flow Analysis'!M11,'Mortgage Summary'!26:26),'Mortgage Summary'!L27) -> 0
B35: Net Sale Proceeds | D35: =D31+D34 -> 286737.6793 | E35: =E31+E34 -> 334926.8445 | F35: 384612.6522 | G35: 435841.6664 | H35: 488661.9023 | I35: 543122.8719 | J35: 601775.6304 | K35: 0 | L35: 0 | M35: 0
B37: Total Leveraged Cash Flow | C37: =C18+C33+C34+SUM(C21:C24)+C31 -> -317000 | D37: =IF(D11='General Assumptions'!$C$32,D18+D33+D34+SUM(D21:D24)+D31,SUM(D21:D24)+'Cash Flow Analysis'!D18) -> 7521.769993 | E37: =IF(E11='General Assumptions'!$C$32,E18+E33+E34+SUM(E21:E24)+E31,SUM(E21:E24)+'Cash Flow Analysis'!E18) -> 13930.08999 | F37: =IF(F11='General Assumptions'!$C$32,F18+F33+F34+SUM(F21:F24)+F31,SUM(F21:F24)+'Cash Flow Analysis'!F18) -> 15375.12639 | G37: =IF(G11='General Assumptions'!$C$32,G18+G33+G34+SUM(G21:G24)+G31,SUM(G21:G24)+'Cash Flow Analysis'!G18) -> 16857.82727 | H37: =IF(H11='General Assumptions'!$C$32,H18+H33+H34+SUM(H21:H24)+H31,SUM(H21:H24)+'Cash Flow Analysis'!H18) -> 18379.16501 | I37: =IF(I11='General Assumptions'!$C$32,I18+I33+I34+SUM(I21:I24)+I31,SUM(I21:I24)+'Cash Flow Analysis'!I18) -> 19940.13692 | J37: =IF(J11='General Assumptions'!$C$32,J18+J33+J34+SUM(J21:J24)+J31,SUM(J21:J24)+'Cash Flow Analysis'!J18) -> 623317.3963 | K37: =IF(K11='General Assumptions'!$C$32,K18+K33+K34+SUM(K21:K24)+K31,SUM(K21:K24)+'Cash Flow Analysis'!K18) -> 0 | L37: =IF(L11='General Assumptions'!$C$32,L18+L33+L34+SUM(L21:L24)+L31,SUM(L21:L24)+'Cash Flow Analysis'!L18) -> 0 | M37: =IF(M11='General Assumptions'!$C$32,M18+M33+M34+SUM(M21:M24)+M31,SUM(M21:M24)+'Cash Flow Analysis'!M18) -> 0
B39: Return Measures | D39: 1 | E39: =D39+1 -> 2 | F39: =E39+1 -> 3 | G39: =F39+1 -> 4 | H39: =G39+1 -> 5 | I39: =H39+1 -> 6 | J39: =I39+1 -> 7 | K39: =J39+1 -> 8 | L39: =K39+1 -> 9 | M39: =L39+1 -> 10
B40: Debt Service Coverage Ratio | D40: =IF(D18=0,"",D15/-D16) -> 1.306949536 | E40: =IF(E18=0,"",E15/-E16) -> 1.341472066 | F40: 1.376894634 | G40: 1.413240482 | H40: 1.450533446 | I40: 1.488797973 | J40: 1.528059136
B41: Operating Expense Ratio | D41: =IF(D18=0,"",-D14/D12) -> 0.2095 | E41: =IF(E18=0,"",-E14/E12) -> 0.2084780488 | F41: 0.2074610827 | G41: 0.2064490774 | H41: 0.2054420087 | I41: 0.2044398526 | J41: 0.203442585 | L41: =IF(L18=0,"",-L14/L12) ->  | M41: =IF(M18=0,"",-M14/M12) -> 
B42: Capitalization Rate (Cap Rate) | D42: =IF(D18=0,"",D15/'General Assumptions'!$C$16) -> 0.05252807882 | E42: =IF(E18=0,"",E15/'General Assumptions'!$C$16) -> 0.05391558621 | F42: =IF(F18=0,"",F15/'General Assumptions'!$C$16) -> 0.05533926739 | G42: =IF(G18=0,"",G15/'General Assumptions'!$C$16) -> 0.05680005643 | H42: =IF(H18=0,"",H15/'General Assumptions'!$C$16) -> 0.05829891135 | I42: =IF(I18=0,"",I15/'General Assumptions'!$C$16) -> 0.05983681471 | J42: =IF(J18=0,"",J15/'General Assumptions'!$C$16) -> 0.06141477426 | K42: =IF(K18=0,"",K15/'General Assumptions'!$C$16) ->  | L42: =IF(L18=0,"",L15/'General Assumptions'!$C$16) ->  | M42: =IF(M18=0,"",M15/'General Assumptions'!$C$16) -> 
B43: Cash-on-Cash Return (%) | D43: =IFERROR(-IF(D18=0,"",D18/($C$37)),"") -> 0.02372798105 | E43: =IFERROR(-IF(E18=0,"",E18/($C$37)),"") -> 0.04394350155 | F43: 0.048501976 | G43: 0.05317926584 | H43: 0.05797843852 | I43: 0.06290264012 | J43: 0.06795509737 | M43: =IFERROR(-IF(M18=0,"",M18/($C$37)),"") -> 
B45: Levered IRR | C45: =IRR(C37:M37) -> 0.1333571124
B46: Levered Cash Multiple | C46: =SUMIF(C37:M37,">0",C37:M37)/-SUMIF(C37:M37,"<0",C37:M37) -> 2.256534738
B47: Net Present Value (NPV) | C47: =NPV('General Assumptions'!C40,'Cash Flow Analysis'!C37:M37) -> 161404.368
B48: Return on Equity Investment | C48: =SUM(C37:M37)/-C37 -> 1.256534738

Sheet Expense Assumptions (hidden)
B5: Real Estate Investment Analysis Software
B9: Annual Expenses
B13: Expense Description
B14: Accounting | D14: 1200
B15: Advertising | D15: 0
B16: Association Fees | D16: 0
B17: Auto & Travel | D17: 0
B18: Cleaning | D18: 0
B19: Condo Fee | D19: 7200
B20: Insurance | D20: 0
B21: Landscaping | D21: 0
B22: Leasing Fees | D22: 0
B23: Legal | D23: 0
B24: Payroll | D24: 0
B25: Pest Control | D25: 0
B26: Professional Fees | D26: 0
B27: Property Management | D27: =(D40*SUM('Cash Flow Analysis'!D12:D13)) -> 684
B28: Property Taxes | D28: 6000
B29: Supplies | D29: 0
B30: Tenant Incentive | D30: 0
B31: Trash Removal | D31: 0
B32: Utilities | D32: 0
B33: Other Expenses | D33: 0
B34: Other Expenses | D34: 0
B35: Total Annual Expenses | D35: =SUM(D14:D34) -> 15084
B37: Core Deal Assumptions
B38: Annual Expense Growth Rate | D38: 0.02
B39: Annual Vacancy Loss | D39: 0.05
B40: Property Management Fee | D40: 0.01

Sheet Mortgage Summary (hidden)
B5: Real Estate Investment Analysis Software
B9: MORTGAGE SUMMARY
B11: Total Property Cost | C11: ='General Assumptions'!C12 -> 1000000
B12: Down Payment | C12: ='General Assumptions'!C21 -> 300000
B13: Mortgage Amount | C13: ='General Assumptions'!C22 -> 700000
B14: Interest Rate | C14: ='General Assumptions'!C23 -> 0.0324
B15: Monthly Interest Rate | C15: ='Amortization Schedule'!K17 -> 0.002681953382
B16: Mortgage Compounding Frequency | C16: ='General Assumptions'!C24 -> 2
B17: Amortization (Years) | C17: ='General Assumptions'!C25 -> 25
B18: Total Number of Payments | C18: =C17*12 -> 300
B19: Monthly Payment | C19: =-PMT(C15,C18,C13,0,0) -> 3399.519167
B20: Total Annual Payment | C20: =C19*12 -> 40794.23001
B22: Schedule | C22: 1 | D22: =C22+1 -> 2 | E22: =D22+1 -> 3 | F22: 4 | G22: 5 | H22: 6 | I22: 7 | J22: =I22+1 -> 8 | K22: 9 | L22: 10
B23: Outstanding Balance | C23: =C13 -> 700000 | D23: =C27 -> 681462.3207 | E23: =D27 -> 662319.1555 | F23: =E27 -> 642550.7278 | G23: =F27 -> 622136.615 | H23: 601055.7276 | I23: 579286.2869 | J23: =I27 -> 0 | K23: =J27 -> 0 | L23: =K27 -> 0
B24: less AmortizationPaid | C24: =-SUMIF('Amortization Schedule'!$B:$B,'Mortgage Summary'!C22,'Amortization Schedule'!$G:$G)*IF(C22<='General Assumptions'!$C$32,1,0) -> -18537.67935 | D24: =-SUMIF('Amortization Schedule'!$B:$B,'Mortgage Summary'!D22,'Amortization Schedule'!$G:$G)*IF(D22<='General Assumptions'!$C$32,1,0) -> -19143.16518 | E24: =-SUMIF('Amortization Schedule'!$B:$B,'Mortgage Summary'!E22,'Amortization Schedule'!$G:$G)*IF(E22<='General Assumptions'!$C$32,1,0) -> -19768.42767 | F24: =-SUMIF('Amortization Schedule'!$B:$B,'Mortgage Summary'!F22,'Amortization Schedule'!$G:$G)*IF(F22<='General Assumptions'!$C$32,1,0) -> -20414.11275 | G24: =-SUMIF('Amortization Schedule'!$B:$B,'Mortgage Summary'!G22,'Amortization Schedule'!$G:$G)*IF(G22<='General Assumptions'!$C$32,1,0) -> -21080.88748 | H24: =-SUMIF('Amortization Schedule'!$B:$B,'Mortgage Summary'!H22,'Amortization Schedule'!$G:$G)*IF(H22<='General Assumptions'!$C$32,1,0) -> -21769.44071 | I24: =-SUMIF('Amortization Schedule'!$B:$B,'Mortgage Summary'!I22,'Amortization Schedule'!$G:$G)*IF(I22<='General Assumptions'!$C$32,1,0) -> -22480.48376 | J24: =-SUMIF('Amortization Schedule'!$B:$B,'Mortgage Summary'!J22,'Amortization Schedule'!$G:$G)*IF(J22<='General Assumptions'!$C$32,1,0) -> 0 | K24: =-SUMIF('Amortization Schedule'!$B:$B,'Mortgage Summary'!K22,'Amortization Schedule'!$G:$G)*IF(K22<='General Assumptions'!$C$32,1,0) -> 0 | L24: =-SUMIF('Amortization Schedule'!$B:$B,'Mortgage Summary'!L22,'Amortization Schedule'!$G:$G)*IF(L22<='General Assumptions'!$C$32,1,0) -> 0
B25: less Interesst Paid | C25: =-SUMIF('Amortization Schedule'!$B:$B,'Mortgage Summary'!C22,'Amortization Schedule'!$F:$F)*IF(C22<='General Assumptions'!$C$32,1,0) -> -22256.55066 | D25: =-SUMIF('Amortization Schedule'!$B:$B,'Mortgage Summary'!D22,'Amortization Schedule'!$F:$F)*IF(D22<='General Assumptions'!$C$32,1,0) -> -21651.06482 | E25: =-SUMIF('Amortization Schedule'!$B:$B,'Mortgage Summary'!E22,'Amortization Schedule'!$F:$F)*IF(E22<='General Assumptions'!$C$32,1,0) -> -21025.80234 | F25: =-SUMIF('Amortization Schedule'!$B:$B,'Mortgage Summary'!F22,'Amortization Schedule'!$F:$F)*IF(F22<='General Assumptions'!$C$32,1,0) -> -20380.11726 | G25: =-SUMIF('Amortization Schedule'!$B:$B,'Mortgage Summary'!G22,'Amortization Schedule'!$F:$F)*IF(G22<='General Assumptions'!$C$32,1,0) -> -19713.34252 | H25: =-SUMIF('Amortization Schedule'!$B:$B,'Mortgage Summary'!H22,'Amortization Schedule'!$F:$F)*IF(H22<='General Assumptions'!$C$32,1,0) -> -19024.7893 | I25: =-SUMIF('Amortization Schedule'!$B:$B,'Mortgage Summary'!I22,'Amortization Schedule'!$F:$F)*IF(I22<='General Assumptions'!$C$32,1,0) -> -18313.74625 | J25: =-SUMIF('Amortization Schedule'!$B:$B,'Mortgage Summary'!J22,'Amortization Schedule'!$F:$F)*IF(J22<='General Assumptions'!$C$32,1,0) -> 0 | K25: =-SUMIF('Amortization Schedule'!$B:$B,'Mortgage Summary'!K22,'Amortization Schedule'!$F:$F)*IF(K22<='General Assumptions'!$C$32,1,0) -> 0 | L25: =-SUMIF('Amortization Schedule'!$B:$B,'Mortgage Summary'!L22,'Amortization Schedule'!$F:$F)*IF(L22<='General Assumptions'!$C$32,1,0) -> 0
B26: less Principal Repayment | C26: =-IF(C22='General Assumptions'!$C$32,'Mortgage Summary'!C23+C24,0) -> 0 | D26: =-IF(D22='General Assumptions'!$C$32,'Mortgage Summary'!D23+D24,0) -> 0 | E26: =-IF(E22='General Assumptions'!$C$32,'Mortgage Summary'!E23+E24,0) -> 0 | F26: =-IF(F22='General Assumptions'!$C$32,'Mortgage Summary'!F23+F24,0) -> 0 | G26: =-IF(G22='General Assumptions'!$C$32,'Mortgage Summary'!G23+G24,0) -> 0 | H26: =-IF(H22='General Assumptions'!$C$32,'Mortgage Summary'!H23+H24,0) -> 0 | I26: =-IF(I22='General Assumptions'!$C$32,'Mortgage Summary'!I23+I24,0) -> -556805.8031 | J26: =-IF(J22='General Assumptions'!$C$32,'Mortgage Summary'!J23+J24,0) -> 0 | K26: =-IF(K22='General Assumptions'!$C$32,'Mortgage Summary'!K23+K24,0) -> 0 | L26: =-IF(L22='General Assumptions'!$C$32,'Mortgage Summary'!L23+L24,0) -> 0
B27: End of Year Balance | C27: =C23+C24+C26 -> 681462.3207 | D27: =D23+D24+D26 -> 662319.1555 | E27: 642550.7278 | F27: 622136.615 | G27: 601055.7276 | H27: 579286.2869 | I27: =I23+I24+I26 -> 0 | J27: 0 | K27: 0 | L27: =L23-L24 -> 0

Sheet Amortization Schedule (hidden)
B5: Real Estate Investment Analysis Software
B10: AMORTIZATION SCHEDULE
B12: Year | C12: Payment | D12: Payment | E12: Monthly | F12: Interest | G12: Amortization | H12: Remaining | J12: Mortgage | K12: ='Mortgage Summary'!C13 -> 700000
B13: # | C13: # | D13: Date | E13: Payment | F13: Paid | G13: Paid | H13: Balance | J13: Annual Compounding Frequency | K13: ='General Assumptions'!C24 -> 2
B14: 0 | C14: 0 | D14: ='General Assumptions'!C27 -> 2020-07-01 | H14: ='General Assumptions'!C22 -> 700000 | J14: Amortization | K14: ='General Assumptions'!C25 -> 25
B15: 1 | C15: 1 | D15: =EDATE(D14,1) -> 2020-08-01 | E15: =$K$18 -> 3399.519167 | F15: =IF(H14>0,H14*$K$17,0) -> 1877.367368 | G15: =IF(H14>0,E15-F15,0) -> 1522.1518 | H15: =H14-G15 -> 698477.8482 | J15: Total # of Payments | K15: ='General Assumptions'!C26 -> 300
B16: =B15 -> 1 | C16: 2 | D16: 2020-09-01 | E16: 3399.519167 | F16: 1873.285028 | G16: =IF(H15>0,E16-F16,0) -> 1526.23414 | H16: =H15-G16 -> 696951.6141 | J16: Interest Rate | K16: ='General Assumptions'!C23 -> 0.0324
B17: =B16 -> 1 | C17: 3 | D17: 2020-10-01 | E17: 3399.519167 | F17: 1869.191739 | G17: 1530.327429 | H17: 695421.2866 | J17: Monthly Interest Rate | K17: =((1+K16/K13)^(K13/12))-1 -> 0.002681953382
B18: 1 | C18: 4 | D18: 2020-11-01 | E18: 3399.519167 | F18: 1865.087472 | G18: 1534.431695 | H18: 693886.8549 | J18: Monthly Payment | K18: =-PMT(K17,K15,K12,0,0) -> 3399.519167
B19: 1 | C19: 5 | D19: 2020-12-01 | E19: 3399.519167 | F19: 1860.972198 | G19: 1538.54697 | H19: 692348.308 | J19: Annual Payment | K19: =K18*12 -> 40794.23001
B20: 1 | C20: 6 | D20: 2021-01-01 | E20: 3399.519167 | F20: 1856.845886 | G20: 1542.673281 | H20: 690805.6347
B21: 1 | C21: 7 | D21: 2021-02-01 | E21: 3399.519167 | F21: 1852.708509 | G21: 1546.810659 | H21: 689258.824
B22: 1 | C22: 8 | D22: 2021-03-01 | E22: 3399.519167 | F22: 1848.560035 | G22: 1550.959133 | H22: 687707.8649
B23: 1 | C23: 9 | D23: 2021-04-01 | E23: 3399.519167 | F23: 1844.400434 | G23: 1555.118733 | H23: 686152.7462
B24: 1 | C24: 10 | D24: 2021-05-01 | E24: 3399.519167 | F24: 1840.229678 | G24: 1559.289489 | H24: 684593.4567
B25: 1 | C25: 11 | D25: 2021-06-01 | E25: 3399.519167 | F25: 1836.047737 | G25: 1563.471431 | H25: 683029.9852
B26: 1 | C26: 12 | D26: 2021-07-01 | E26: 3399.519167 | F26: 1831.854579 | G26: 1567.664588 | H26: 681462.3207
B27: =B15+1 -> 2 | C27: 13 | D27: 2021-08-01 | E27: 3399.519167 | F27: 1827.650176 | G27: 1571.868991 | H27: 679890.4517
B28: =B16+1 -> 2 | C28: 14 | D28: 2021-09-01 | E28: 3399.519167 | F28: 1823.434497 | G28: 1576.084671 | H28: 678314.367
B29: 2 | C29: 15 | D29: 2021-10-01 | E29: 3399.519167 | F29: 1819.207511 | G29: 1580.311656 | H29: 676734.0553
B30: 2 | C30: 16 | D30: 2021-11-01 | E30: 3399.519167 | F30: 1814.969189 | G30: 1584.549979 | H30: 675149.5054
B31: 2 | C31: 17 | D31: 2021-12-01 | E31: 3399.519167 | F31: 1810.7195 | G31: 1588.799668 | H31: 673560.7057
B32: 2 | C32: 18 | D32: 2022-01-01 | E32: 3399.519167 | F32: 1806.458413 | G32: 1593.060754 | H32: 671967.6449
B33: 2 | C33: 19 | D33: 2022-02-01 | E33: 3399.519167 | F33: 1802.185898 | G33: 1597.333269 | H33: 670370.3117
B34: 2 | C34: 20 | D34: 2022-03-01 | E34: 3399.519167 | F34: 1797.901925 | G34: 1601.617242 | H34: 668768.6944
B35: 2 | C35: 21 | D35: 2022-04-01 | E35: 3399.519167 | F35: 1793.606462 | G35: 1605.912705 | H35: 667162.7817
B36: 2 | C36: 22 | D36: 2022-05-01 | E36: 3399.519167 | F36: 1789.299479 | G36: 1610.219688 | H36: 665552.562
B37: 2 | C37: 23 | D37: 2022-06-01 | E37: 3399.519167 | F37: 1784.980945 | G37: 1614.538222 | H37: 663938.0238
B38: 2 | C38: 24 | D38: 2022-07-01 | E38: 3399.519167 | F38: 1780.650829 | G38: 1618.868339 | H38: 662319.1555
B39: 3 | C39: 25 | D39: 2022-08-01 | E39: 3399.519167 | F39: 1776.309099 | G39: 1623.210068 | H39: 660695.9454
B40: 3 | C40: 26 | D40: 2022-09-01 | E40: 3399.519167 | F40: 1771.955726 | G40: 1627.563442 | H40: 659068.382
B41: 3 | C41: 27 | D41: 2022-10-01 | E41: 3399.519167 | F41: 1767.590676 | G41: 1631.928491 | H41: 657436.4535
B42: 3 | C42: 28 | D42: 2022-11-01 | E42: 3399.519167 | F42: 1763.21392 | G42: 1636.305247 | H42: 655800.1482
B43: 3 | C43: 29 | D43: 2022-12-01 | E43: 3399.519167 | F43: 1758.825426 | G43: 1640.693742 | H43: 654159.4545
B44: 3 | C44: 30 | D44: 2023-01-01 | E44: 3399.519167 | F44: 1754.425162 | G44: 1645.094006 | H44: 652514.3605
B45: 3 | C45: 31 | D45: 2023-02-01 | E45: 3399.519167 | F45: 1750.013096 | G45: 1649.506071 | H45: 650864.8544
B46: 3 | C46: 32 | D46: 2023-03-01 | E46: 3399.519167 | F46: 1745.589198 | G46: 1653.929969 | H46: 649210.9244
B47: 3 | C47: 33 | D47: 2023-04-01 | E47: 3399.519167 | F47: 1741.153435 | G47: 1658.365733 | H47: 647552.5587
B48: 3 | C48: 34 | D48: 2023-05-01 | E48: 3399.519167 | F48: 1736.705775 | G48: 1662.813392 | H48: 645889.7453
B49: 3 | C49: 35 | D49: 2023-06-01 | E49: 3399.519167 | F49: 1732.246187 | G49: 1667.27298 | H49: 644222.4723
B50: 3 | C50: =C49+1 -> 36 | D50: 2023-07-01 | E50: 3399.519167 | F50: 1727.774639 | G50: 1671.744529 | H50: 642550.7278
B51: 4 | C51: =C50+1 -> 37 | D51: 2023-08-01 | E51: 3399.519167 | F51: 1723.291098 | G51: 1676.228069 | H51: 640874.4997
B52: 4 | C52: 38 | D52: 2023-09-01 | E52: 3399.519167 | F52: 1718.795532 | G52: 1680.723635 | H52: 639193.7761
B53: 4 | C53: 39 | D53: 2023-10-01 | E53: 3399.519167 | F53: 1714.28791 | G53: 1685.231257 | H53: 637508.5448
B54: 4 | C54: 40 | D54: 2023-11-01 | E54: 3399.519167 | F54: 1709.768198 | G54: 1689.750969 | H54: 635818.7939
B55: 4 | C55: 41 | D55: 2023-12-01 | E55: 3399.519167 | F55: 1705.236365 | G55: 1694.282802 | H55: 634124.5111
B56: 4 | C56: 42 | D56: 2024-01-01 | E56: 3399.519167 | F56: 1700.692377 | G56: 1698.82679 | H56: 632425.6843
B57: 4 | C57: 43 | D57: 2024-02-01 | E57: 3399.519167 | F57: 1696.136203 | G57: 1703.382964 | H57: 630722.3013
B58: 4 | C58: 44 | D58: 2024-03-01 | E58: 3399.519167 | F58: 1691.567809 | G58: 1707.951358 | H58: 629014.35
B59: 4 | C59: 45 | D59: 2024-04-01 | E59: 3399.519167 | F59: 1686.987163 | G59: 1712.532004 | H59: 627301.818
B60: 4 | C60: 46 | D60: 2024-05-01 | E60: 3399.519167 | F60: 1682.394232 | G60: 1717.124935 | H60: 625584.693
B61: 4 | C61: 47 | D61: 2024-06-01 | E61: 3399.519167 | F61: 1677.788983 | G61: 1721.730184 | H61: 623862.9628
B62: 4 | C62: 48 | D62: 2024-07-01 | E62: 3399.519167 | F62: 1673.171383 | G62: 1726.347784 | H62: 622136.615
B63: 5 | C63: 49 | D63: 2024-08-01 | E63: 3399.519167 | F63: 1668.541399 | G63: 1730.977768 | H63: 620405.6373
B64: 5 | C64: 50 | D64: 2024-09-01 | E64: 3399.519167 | F64: 1663.898997 | G64: 1735.62017 | H64: 618670.0171
B65: 5 | C65: 51 | D65: 2024-10-01 | E65: 3399.519167 | F65: 1659.244145 | G65: 1740.275022 | H65: 616929.7421
B66: 5 | C66: 52 | D66: 2024-11-01 | E66: 3399.519167 | F66: 1654.576809 | G66: 1744.942359 | H66: 615184.7997
B67: 5 | C67: 53 | D67: 2024-12-01 | E67: 3399.519167 | F67: 1649.896954 | G67: 1749.622213 | H67: 613435.1775
B68: 5 | C68: 54 | D68: 2025-01-01 | E68: 3399.519167 | F68: 1645.204549 | G68: 1754.314618 | H68: 611680.8629
B69: 5 | C69: 55 | D69: 2025-02-01 | E69: 3399.519167 | F69: 1640.499559 | G69: 1759.019608 | H69: 609921.8433
B70: 5 | C70: 56 | D70: 2025-03-01 | E70: 3399.519167 | F70: 1635.781951 | G70: 1763.737217 | H70: 608158.1061
B71: 5 | C71: 57 | D71: 2025-04-01 | E71: 3399.519167 | F71: 1631.05169 | G71: 1768.467478 | H71: 606389.6386
B72: 5 | C72: 58 | D72: 2025-05-01 | E72: 3399.519167 | F72: 1626.308742 | G72: 1773.210425 | H72: 604616.4282
B73: 5 | C73: 59 | D73: 2025-06-01 | E73: 3399.519167 | F73: 1621.553075 | G73: 1777.966093 | H73: 602838.4621
B74: 5 | C74: 60 | D74: 2025-07-01 | E74: 3399.519167 | F74: 1616.784652 | G74: 1782.734515 | H74: 601055.7276
B75: 6 | C75: 61 | D75: 2025-08-01 | E75: 3399.519167 | F75: 1612.003442 | G75: 1787.515726 | H75: 599268.2118
B76: 6 | C76: 62 | D76: 2025-09-01 | E76: 3399.519167 | F76: 1607.209408 | G76: 1792.30976 | H76: 597475.9021
B77: 6 | C77: 63 | D77: 2025-10-01 | E77: 3399.519167 | F77: 1602.402517 | G77: 1797.116651 | H77: 595678.7854
B78: 6 | C78: 64 | D78: 2025-11-01 | E78: 3399.519167 | F78: 1597.582733 | G78: 1801.936434 | H78: 593876.849
B79: 6 | C79: 65 | D79: 2025-12-01 | E79: =$K$18 -> 3399.519167 | F79: =IF(H78>0,H78*$K$17,0) -> 1592.750024 | G79: 1806.769143 | H79: 592070.0799
B80: 6 | C80: 66 | D80: =EDATE(D79,1) -> 2026-01-01 | E80: 3399.519167 | F80: 1587.904353 | G80: =IF(H79>0,E80-F80,0) -> 1811.614814 | H80: =H79-G80 -> 590258.465
B81: 6 | C81: 67 | D81: 2026-02-01 | E81: 3399.519167 | F81: 1583.045687 | G81: 1816.47348 | H81: 588441.9916
B82: 6 | C82: 68 | D82: 2026-03-01 | E82: 3399.519167 | F82: 1578.17399 | G82: 1821.345178 | H82: 586620.6464
B83: 6 | C83: 69 | D83: 2026-04-01 | E83: 3399.519167 | F83: 1573.289227 | G83: 1826.22994 | H83: 584794.4164
B84: 6 | C84: 70 | D84: 2026-05-01 | E84: 3399.519167 | F84: 1568.391363 | G84: 1831.127804 | H84: 582963.2886
B85: 6 | C85: 71 | D85: 2026-06-01 | E85: 3399.519167 | F85: 1563.480364 | G85: 1836.038803 | H85: 581127.2498
B86: 6 | C86: 72 | D86: 2026-07-01 | E86: 3399.519167 | F86: 1558.556193 | G86: 1840.962974 | H86: 579286.2869
B87: 7 | C87: 73 | D87: 2026-08-01 | E87: 3399.519167 | F87: 1553.618816 | G87: 1845.900351 | H87: 577440.3865
B88: 7 | C88: 74 | D88: 2026-09-01 | E88: 3399.519167 | F88: 1548.668198 | G88: 1850.85097 | H88: 575589.5355
B89: 7 | C89: 75 | D89: 2026-10-01 | E89: 3399.519167 | F89: 1543.704302 | G89: 1855.814866 | H89: 573733.7207
B90: 7 | C90: 76 | D90: 2026-11-01 | E90: 3399.519167 | F90: 1538.727093 | G90: 1860.792074 | H90: 571872.9286
B91: 7 | C91: 77 | D91: 2026-12-01 | E91: 3399.519167 | F91: 1533.736535 | G91: 1865.782632 | H91: 570007.146
B92: =B80+1 -> 7 | C92: 78 | D92: 2027-01-01 | E92: 3399.519167 | F92: 1528.732593 | G92: 1870.786574 | H92: 568136.3594
B93: 7 | C93: 79 | D93: 2027-02-01 | E93: 3399.519167 | F93: 1523.715231 | G93: 1875.803937 | H93: 566260.5555
B94: 7 | C94: 80 | D94: 2027-03-01 | E94: 3399.519167 | F94: 1518.684412 | G94: 1880.834755 | H94: 564379.7207
B95: 7 | C95: 81 | D95: 2027-04-01 | E95: 3399.519167 | F95: 1513.640101 | G95: 1885.879066 | H95: 562493.8416
B96: 7 | C96: 82 | D96: 2027-05-01 | E96: 3399.519167 | F96: 1508.582261 | G96: 1890.936906 | H96: 560602.9047
B97: 7 | C97: 83 | D97: 2027-06-01 | E97: 3399.519167 | F97: 1503.510857 | G97: 1896.008311 | H97: 558706.8964
B98: 7 | C98: 84 | D98: 2027-07-01 | E98: 3399.519167 | F98: 1498.425851 | G98: 1901.093317 | H98: 556805.8031
B99: 8 | C99: 85 | D99: 2027-08-01 | E99: 3399.519167 | F99: 1493.327207 | G99: 1906.19196 | H99: 554899.6111
B100: 8 | C100: 86 | D100: 2027-09-01 | E100: 3399.519167 | F100: 1488.214889 | G100: 1911.304278 | H100: 552988.3069
B101: 8 | C101: 87 | D101: 2027-10-01 | E101: 3399.519167 | F101: 1483.08886 | G101: 1916.430307 | H101: 551071.8766
B102: 8 | C102: 88 | D102: 2027-11-01 | E102: 3399.519167 | F102: 1477.949083 | G102: 1921.570084 | H102: 549150.3065
B103: 8 | C103: 89 | D103: 2027-12-01 | E103: 3399.519167 | F103: 1472.795522 | G103: 1926.723645 | H103: 547223.5828
B104: 8 | C104: 90 | D104: 2028-01-01 | E104: 3399.519167 | F104: 1467.628139 | G104: 1931.891028 | H104: 545291.6918
B105: 8 | C105: 91 | D105: 2028-02-01 | E105: 3399.519167 | F105: 1462.446897 | G105: 1937.07227 | H105: 543354.6195
B106: 8 | C106: 92 | D106: 2028-03-01 | E106: 3399.519167 | F106: 1457.25176 | G106: 1942.267408 | H106: 541412.3521
B107: 8 | C107: 93 | D107: 2028-04-01 | E107: 3399.519167 | F107: 1452.042689 | G107: 1947.476478 | H107: 539464.8756
B108: 8 | C108: 94 | D108: 2028-05-01 | E108: 3399.519167 | F108: 1446.819648 | G108: 1952.699519 | H108: 537512.1761
B109: 8 | C109: 95 | D109: 2028-06-01 | E109: 3399.519167 | F109: 1441.582599 | G109: 1957.936568 | H109: 535554.2396
B110: 8 | C110: 96 | D110: 2028-07-01 | E110: 3399.519167 | F110: 1436.331504 | G110: 1963.187663 | H110: 533591.0519
B111: 9 | C111: 97 | D111: 2028-08-01 | E111: 3399.519167 | F111: 1431.066326 | G111: 1968.452841 | H111: 531622.599
B112: 9 | C112: 98 | D112: 2028-09-01 | E112: 3399.519167 | F112: 1425.787028 | G112: 1973.73214 | H112: 529648.8669
B113: 9 | C113: 99 | D113: 2028-10-01 | E113: 3399.519167 | F113: 1420.49357 | G113: 1979.025597 | H113: 527669.8413
B114: 9 | C114: 100 | D114: 2028-11-01 | E114: 3399.519167 | F114: 1415.185916 | G114: 1984.333252 | H114: 525685.5081
B115: 9 | C115: =C114+1 -> 101 | D115: 2028-12-01 | E115: 3399.519167 | F115: 1409.864026 | G115: 1989.655141 | H115: 523695.8529
B116: 9 | C116: 102 | D116: 2029-01-01 | E116: 3399.519167 | F116: 1404.527864 | G116: 1994.991303 | H116: 521700.8616
B117: 9 | C117: 103 | D117: 2029-02-01 | E117: 3399.519167 | F117: 1399.17739 | G117: 2000.341777 | H117: 519700.5198
B118: 9 | C118: 104 | D118: 2029-03-01 | E118: 3399.519167 | F118: 1393.812567 | G118: 2005.7066 | H118: 517694.8132
B119: 9 | C119: 105 | D119: 2029-04-01 | E119: 3399.519167 | F119: 1388.433355 | G119: 2011.085812 | H119: 515683.7274
B120: 9 | C120: 106 | D120: 2029-05-01 | E120: 3399.519167 | F120: 1383.039717 | G120: 2016.47945 | H120: 513667.248
B121: 9 | C121: 107 | D121: 2029-06-01 | E121: 3399.519167 | F121: 1377.631613 | G121: 2021.887554 | H121: 511645.3604
B122: 9 | C122: 108 | D122: 2029-07-01 | E122: 3399.519167 | F122: 1372.209005 | G122: 2027.310162 | H122: 509618.0503
B123: 10 | C123: 109 | D123: 2029-08-01 | E123: 3399.519167 | F123: 1366.771854 | G123: 2032.747314 | H123: 507585.3029
B124: 10 | C124: 110 | D124: 2029-09-01 | E124: 3399.519167 | F124: 1361.32012 | G124: 2038.199047 | H124: 505547.1039
B125: 10 | C125: 111 | D125: 2029-10-01 | E125: 3399.519167 | F125: 1355.853765 | G125: 2043.665402 | H125: 503503.4385
B126: 10 | C126: 112 | D126: 2029-11-01 | E126: 3399.519167 | F126: 1350.37275 | G126: 2049.146417 | H126: 501454.2921
B127: 10 | C127: 113 | D127: 2029-12-01 | E127: 3399.519167 | F127: 1344.877035 | G127: 2054.642132 | H127: 499399.6499
B128: 10 | C128: 114 | D128: 2030-01-01 | E128: 3399.519167 | F128: 1339.36658 | G128: 2060.152587 | H128: 497339.4974
B129: 10 | C129: 115 | D129: 2030-02-01 | E129: 3399.519167 | F129: 1333.841347 | G129: 2065.67782 | H129: 495273.8195
B130: 10 | C130: 116 | D130: 2030-03-01 | E130: 3399.519167 | F130: 1328.301296 | G130: 2071.217872 | H130: 493202.6017
B131: 10 | C131: 117 | D131: 2030-04-01 | E131: 3399.519167 | F131: 1322.746386 | G131: 2076.772781 | H131: 491125.8289
B132: 10 | C132: 118 | D132: 2030-05-01 | E132: 3399.519167 | F132: 1317.176578 | G132: 2082.342589 | H132: 489043.4863
B133: 10 | C133: 119 | D133: 2030-06-01 | E133: 3399.519167 | F133: 1311.591832 | G133: 2087.927335 | H133: 486955.559
B134: 10 | C134: 120 | D134: 2030-07-01 | E134: 3399.519167 | F134: 1305.992108 | G134: 2093.527059 | H134: 484862.0319
B135: 11 | C135: 121 | D135: 2030-08-01 | E135: 3399.519167 | F135: 1300.377367 | G135: 2099.141801 | H135: 482762.8901
B136: 11 | C136: 122 | D136: 2030-09-01 | E136: 3399.519167 | F136: 1294.747566 | G136: 2104.771601 | H136: 480658.1185
B137: 11 | C137: 123 | D137: 2030-10-01 | E137: 3399.519167 | F137: 1289.102667 | G137: 2110.416501 | H137: 478547.702
B138: 11 | C138: 124 | D138: 2030-11-01 | E138: 3399.519167 | F138: 1283.442628 | G138: 2116.076539 | H138: 476431.6255
B139: 11 | C139: 125 | D139: 2030-12-01 | E139: 3399.519167 | F139: 1277.767409 | G139: 2121.751758 | H139: 474309.8737
B140: 11 | C140: 126 | D140: 2031-01-01 | E140: 3399.519167 | F140: 1272.07697 | G140: 2127.442197 | H140: 472182.4315
B141: 11 | C141: 127 | D141: 2031-02-01 | E141: 3399.519167 | F141: 1266.371269 | G141: 2133.147898 | H141: 470049.2836
B142: 11 | C142: 128 | D142: 2031-03-01 | E142: 3399.519167 | F142: 1260.650266 | G142: 2138.868901 | H142: 467910.4147
B143: 11 | C143: 129 | D143: 2031-04-01 | E143: =$K$18 -> 3399.519167 | F143: =IF(H142>0,H142*$K$17,0) -> 1254.913919 | G143: 2144.605248 | H143: 465765.8095
B144: 11 | C144: 130 | D144: =EDATE(D143,1) -> 2031-05-01 | E144: 3399.519167 | F144: 1249.162188 | G144: =IF(H143>0,E144-F144,0) -> 2150.356979 | H144: =H143-G144 -> 463615.4525
B145: 11 | C145: 131 | D145: 2031-06-01 | E145: 3399.519167 | F145: 1243.395031 | G145: 2156.124136 | H145: 461459.3283
B146: 11 | C146: 132 | D146: 2031-07-01 | E146: 3399.519167 | F146: 1237.612407 | G146: 2161.906761 | H146: 459297.4216
B147: 12 | C147: 133 | D147: 2031-08-01 | E147: 3399.519167 | F147: 1231.814273 | G147: 2167.704894 | H147: 457129.7167
B148: 12 | C148: 134 | D148: 2031-09-01 | E148: 3399.519167 | F148: 1226.00059 | G148: 2173.518577 | H148: 454956.1981
B149: 12 | C149: 135 | D149: 2031-10-01 | E149: 3399.519167 | F149: 1220.171314 | G149: 2179.347853 | H149: 452776.8503
B150: 12 | C150: 136 | D150: 2031-11-01 | E150: 3399.519167 | F150: 1214.326405 | G150: 2185.192762 | H150: 450591.6575
B151: 12 | C151: 137 | D151: 2031-12-01 | E151: 3399.519167 | F151: 1208.46582 | G151: 2191.053347 | H151: 448400.6042
B152: 12 | C152: 138 | D152: 2032-01-01 | E152: 3399.519167 | F152: 1202.589517 | G152: 2196.92965 | H152: 446203.6745
B153: 12 | C153: 139 | D153: 2032-02-01 | E153: 3399.519167 | F153: 1196.697454 | G153: 2202.821713 | H153: 444000.8528
B154: 12 | C154: 140 | D154: 2032-03-01 | E154: 3399.519167 | F154: 1190.789589 | G154: 2208.729578 | H154: 441792.1232
B155: 12 | C155: 141 | D155: 2032-04-01 | E155: 3399.519167 | F155: 1184.865879 | G155: 2214.653288 | H155: 439577.4699
B156: =B144+1 -> 12 | C156: 142 | D156: 2032-05-01 | E156: 3399.519167 | F156: 1178.926282 | G156: 2220.592885 | H156: 437356.877
B157: 12 | C157: 143 | D157: 2032-06-01 | E157: 3399.519167 | F157: 1172.970756 | G157: 2226.548412 | H157: 435130.3286
B158: 12 | C158: 144 | D158: 2032-07-01 | E158: 3399.519167 | F158: 1166.999257 | G158: 2232.519911 | H158: 432897.8087
B159: 13 | C159: 145 | D159: 2032-08-01 | E159: 3399.519167 | F159: 1161.011742 | G159: 2238.507425 | H159: 430659.3013
B160: 13 | C160: 146 | D160: 2032-09-01 | E160: 3399.519167 | F160: 1155.00817 | G160: 2244.510998 | H160: 428414.7903
B161: 13 | C161: 147 | D161: 2032-10-01 | E161: 3399.519167 | F161: 1148.988496 | G161: 2250.530671 | H161: 426164.2596
B162: 13 | C162: 148 | D162: 2032-11-01 | E162: 3399.519167 | F162: 1142.952678 | G162: 2256.56649 | H162: 423907.6931
B163: 13 | C163: 149 | D163: 2032-12-01 | E163: 3399.519167 | F163: 1136.900671 | G163: 2262.618496 | H163: 421645.0746
B164: 13 | C164: 150 | D164: 2033-01-01 | E164: 3399.519167 | F164: 1130.832434 | G164: 2268.686733 | H164: 419376.3879
B165: 13 | C165: 151 | D165: 2033-02-01 | E165: 3399.519167 | F165: 1124.747922 | G165: 2274.771245 | H165: 417101.6167
B166: 13 | C166: 152 | D166: 2033-03-01 | E166: 3399.519167 | F166: 1118.647092 | G166: 2280.872076 | H166: 414820.7446
B167: 13 | C167: 153 | D167: 2033-04-01 | E167: 3399.519167 | F167: 1112.529899 | G167: 2286.989268 | H167: 412533.7553
B168: 13 | C168: 154 | D168: 2033-05-01 | E168: 3399.519167 | F168: 1106.3963 | G168: 2293.122867 | H168: 410240.6324
B169: 13 | C169: 155 | D169: 2033-06-01 | E169: 3399.519167 | F169: 1100.246252 | G169: 2299.272915 | H169: 407941.3595
B170: 13 | C170: 156 | D170: 2033-07-01 | E170: 3399.519167 | F170: 1094.079709 | G170: 2305.439458 | H170: 405635.9201
B171: 14 | C171: 157 | D171: 2033-08-01 | E171: 3399.519167 | F171: 1087.896628 | G171: 2311.622539 | H171: 403324.2975
B172: 14 | C172: 158 | D172: 2033-09-01 | E172: 3399.519167 | F172: 1081.696964 | G172: 2317.822203 | H172: 401006.4753
B173: 14 | C173: 159 | D173: 2033-10-01 | E173: 3399.519167 | F173: 1075.480673 | G173: 2324.038494 | H173: 398682.4368
B174: 14 | C174: 160 | D174: 2033-11-01 | E174: 3399.519167 | F174: 1069.24771 | G174: 2330.271457 | H174: 396352.1654
B175: 14 | C175: 161 | D175: 2033-12-01 | E175: 3399.519167 | F175: 1062.998031 | G175: 2336.521137 | H175: 394015.6442
B176: 14 | C176: 162 | D176: 2034-01-01 | E176: 3399.519167 | F176: 1056.73159 | G176: 2342.787577 | H176: 391672.8567
B177: 14 | C177: 163 | D177: 2034-02-01 | E177: 3399.519167 | F177: 1050.448343 | G177: 2349.070825 | H177: 389323.7858
B178: 14 | C178: 164 | D178: 2034-03-01 | E178: 3399.519167 | F178: 1044.148244 | G178: 2355.370923 | H178: 386968.4149
B179: 14 | C179: =C178+1 -> 165 | D179: 2034-04-01 | E179: 3399.519167 | F179: 1037.831249 | G179: 2361.687918 | H179: 384606.727
B180: 14 | C180: 166 | D180: 2034-05-01 | E180: 3399.519167 | F180: 1031.497312 | G180: 2368.021855 | H180: 382238.7051
B181: 14 | C181: 167 | D181: 2034-06-01 | E181: 3399.519167 | F181: 1025.146388 | G181: 2374.372779 | H181: 379864.3324
B182: 14 | C182: 168 | D182: 2034-07-01 | E182: 3399.519167 | F182: 1018.778431 | G182: 2380.740736 | H182: 377483.5916
B183: 15 | C183: 169 | D183: 2034-08-01 | E183: 3399.519167 | F183: 1012.393395 | G183: 2387.125772 | H183: 375096.4659
B184: 15 | C184: 170 | D184: 2034-09-01 | E184: 3399.519167 | F184: 1005.991235 | G184: 2393.527932 | H184: 372702.9379
B185: 15 | C185: 171 | D185: 2034-10-01 | E185: 3399.519167 | F185: 999.571905 | G185: 2399.947262 | H185: 370302.9907
B186: 15 | C186: 172 | D186: 2034-11-01 | E186: 3399.519167 | F186: 993.1353583 | G186: 2406.383809 | H186: 367896.6069
B187: 15 | C187: 173 | D187: 2034-12-01 | E187: 3399.519167 | F187: 986.6815491 | G187: 2412.837618 | H187: 365483.7692
B188: 15 | C188: 174 | D188: 2035-01-01 | E188: 3399.519167 | F188: 980.2104311 | G188: 2419.308736 | H188: 363064.4605
B189: 15 | C189: 175 | D189: 2035-02-01 | E189: 3399.519167 | F189: 973.7219579 | G189: 2425.797209 | H189: 360638.6633
B190: 15 | C190: 176 | D190: 2035-03-01 | E190: 3399.519167 | F190: 967.2160829 | G190: 2432.303084 | H190: 358206.3602
B191: 15 | C191: 177 | D191: 2035-04-01 | E191: 3399.519167 | F191: 960.6927594 | G191: 2438.826408 | H191: 355767.5338
B192: 15 | C192: 178 | D192: 2035-05-01 | E192: 3399.519167 | F192: 954.1519406 | G192: 2445.367227 | H192: 353322.1666
B193: 15 | C193: 179 | D193: 2035-06-01 | E193: 3399.519167 | F193: 947.5935797 | G193: 2451.925588 | H193: 350870.241
B194: 15 | C194: 180 | D194: 2035-07-01 | E194: 3399.519167 | F194: 941.0176296 | G194: 2458.501538 | H194: 348411.7394
B195: 16 | C195: 181 | D195: 2035-08-01 | E195: 3399.519167 | F195: 934.4240431 | G195: 2465.095124 | H195: 345946.6443
B196: 16 | C196: 182 | D196: 2035-09-01 | E196: 3399.519167 | F196: 927.8127729 | G196: 2471.706394 | H196: 343474.9379
B197: 16 | C197: 183 | D197: 2035-10-01 | E197: 3399.519167 | F197: 921.1837716 | G197: 2478.335396 | H197: 340996.6025
B198: 16 | C198: 184 | D198: 2035-11-01 | E198: 3399.519167 | F198: 914.5369916 | G198: 2484.982176 | H198: 338511.6204
B199: 16 | C199: 185 | D199: 2035-12-01 | E199: 3399.519167 | F199: 907.8723852 | G199: 2491.646782 | H199: 336019.9736
B200: 16 | C200: 186 | D200: 2036-01-01 | E200: 3399.519167 | F200: 901.1899047 | G200: 2498.329263 | H200: 333521.6443
B201: 16 | C201: 187 | D201: 2036-02-01 | E201: 3399.519167 | F201: 894.4895021 | G201: 2505.029665 | H201: 331016.6146
B202: 16 | C202: 188 | D202: 2036-03-01 | E202: 3399.519167 | F202: 887.7711293 | G202: 2511.748038 | H202: 328504.8666
B203: 16 | C203: 189 | D203: 2036-04-01 | E203: 3399.519167 | F203: 881.0347382 | G203: 2518.484429 | H203: 325986.3822
B204: 16 | C204: 190 | D204: 2036-05-01 | E204: 3399.519167 | F204: 874.2802803 | G204: 2525.238887 | H204: 323461.1433
B205: 16 | C205: 191 | D205: 2036-06-01 | E205: 3399.519167 | F205: 867.5077073 | G205: 2532.01146 | H205: 320929.1318
B206: 16 | C206: 192 | D206: 2036-07-01 | E206: 3399.519167 | F206: 860.7169706 | G206: 2538.802197 | H206: 318390.3296
B207: 17 | C207: 193 | D207: 2036-08-01 | E207: =$K$18 -> 3399.519167 | F207: =IF(H206>0,H206*$K$17,0) -> 853.9080215 | G207: 2545.611146 | H207: 315844.7185
B208: 17 | C208: 194 | D208: =EDATE(D207,1) -> 2036-09-01 | E208: 3399.519167 | F208: 847.0808111 | G208: =IF(H207>0,E208-F208,0) -> 2552.438356 | H208: =H207-G208 -> 313292.2801
B209: 17 | C209: 195 | D209: 2036-10-01 | E209: 3399.519167 | F209: 840.2352904 | G209: 2559.283877 | H209: 310732.9963
... 105 more rows

Sheet Graphs CashFlowProj_CashRet (hidden)
A1: Cash Flow Projections & Cash On Cash Return

Sheet Graphs CapRate_DebtRat (hidden)
A1: Capitalization Rate & Debt Coverage Ratio

Sheet About Us (hidden)
B5: Real Estate Investment Analysis Software
B9: About Us
E15: ='Company Info'!B2 -> [Enter Name]
E16: ='Company Info'!B3 -> [Enter Company Name]
E17: ='Company Info'!B4 -> [Enter Company Address]
E18: ='Company Info'!B5 -> [Enter City, State, Zip]
E19: ='Company Info'!B6 -> [Enter Phone]
B23: Enter Text Here [Double Click To Enter Box]

Sheet Terms & Definitions (hidden)
A4: Real Estate Investment Analysis Software
A8: Terms & Definitions
A11: General Assumptions
A12: Purchase Price – Agreed upon price by the buyer and seller to purchase the property.
A13: Closing Costs – Fees paid upon closing of a real estate transaction. For our purposes, this includes all commissions, legal fees, appraisal costs, home inspection, appliances, and taxes.
A14: Cash Reserves – Money set aside by the investor(s) for short-term and emergency funds.
A15: Initial Improvements – Estimated cost of any property renovations to be made after closing.
A17: Mortgage Details
A18: Down Payment % – Percentage of the full purchase price paid by the buyer at the onset of the property purchase.
A19: Total Equity Investment – Amount of cash/down payment the investor makes towards the property purchase.
A20: Total Loan Amount – Amount the investor has borrowed to purchase the property.
A21: Interest Rate – Proportion of a loan charged as interest to the borrower, expressed as an annual percentage.
A22: Mortgage Compounding Frequency – Compound interest is the addition of interest to the principal loan sum. Compounding frequency is the number of times per year that interest compounds, or in other words, the number of times per year accrued “interest is charged upon interest”. The frequency could be yearly, semi-annually, quarterly, or monthly.
A23: Amortization – Systematic repayment of a loan over time, frequently used to extend the cost of an expensive and long-lived item such as real estate over many years.
A24: Total # of Monthly Payments – Total number of loan payments amortized over a period of time. For example, a loan with a 25-year amortization will require the borrower to make 300 monthly payments in total (i.e.; 25 years x 12 months = 300 payments).
A26: Exit Assumptions
A27: Length of Hold (years) – Number of years the buyer intends to keep the property before selling it.
A28: Annual Appreciation – Estimated annual property appreciation (expressed as a percentage).
A29: Projected Sale Price – Estimated sale price of the property is calculated by adding estimated annual appreciation to the purchase price over the estimated length of hold.
A30: Adjusted Sale Price – Estimated sale price after all closing and renovation costs.
A32: Core Deal Assumptions
A33: Net Present Value (NPV) – Value of all future cash flows (positive and negative) over the life of an investment discounted to the present. In other words, investors are using the time value of money to translate future cash flows into today’s dollars.
A34: Discount Rate (%) for NPV Calculation – Required rate of return an investor expects to generate to make the investment worthwhile.
A35: Rent Growth Rate (% per year) – Estimated annual rent increase is based upon multiple factors. For real estate investors, the most important factors deal with bringing the property up to its “highest and best use.”
A36: Annual Expense Growth Rate – Estimated annual percentage increase in expenses due to inflation.
A37: Annual Vacancy Loss – Estimated annual percentage of vacancy.
A38: Property Management Fee – Total expenses paid to a property manager for maintaining and managing the property.
A40: Cash Flow Analysis
A41: Total Annual Income – Gross rental income received annually.
A42: Net Operating Income (NOI) – Gross rental income minus all operating expenses.
A43: Annual Cash Flow – Incoming cash minus outgoing cash. Net operating income minus annual debt service minus capital expenditures equals annual cash flow.
A44: Debt Coverage Ratio – Measures the available cash flow’s ability to pay the current debt obligation. Calculated by net operating income (NOI) divided by the annual debt service. It is common to see an “x” after the ratio, which indicates that NOI covers the debt service “x” amount of times. The higher the ratio the better.
A45: Operating Expense Ratio – Total operating expense divided by gross operating income, expressed as a percentage. A percentage below 35 is considered good.
A46: Capitalization Rate – The ratio between an asset’s net operating income and its capital cost (the original price paid to buy the asset).
A47: Cash on Cash Return – Measures the total cash earned (before taxes) on the total cash invested, expressed as a percentage, calculated by taking the annual cash flow divided by the initial investment (down payment + closing costs + initial improvements).
A48: Leveraged Internal Rate of Return (IRR) – IRR is calculated using the same concept as NPV, except IRR sets the NPV to zero before computing the discount rate. The more debt (leverage) used will result in a higher IRR. For instance, 10–15% is considered a good IRR, but there are many other factors to consider (see disclaimer below).
A49: Leveraged Cash Multiple – Amount of cash the investor has after meeting financial obligations. The cash multiple, or “x” beside the number, represents the amount of money gained for every dollar invested. For example, 2x means the investor has doubled the initial investment.
A50: Return on Equity Investment – Investor’s percentage of return in the property.
A52: DISCLAIMER
A53: This report is intended for educational purposes only. Nothing should be considered a recommendation to make an investment. Please consult with your own independent business and financial advisor regarding any investment, including any contemplated investment evaluated using “Real Estate Investment Analysis Software” or any information contained in this report. You agree to hold www.RealEstateInvestmentSpecialist.com, its affiliates, and subsidiaries harmless for any consequences from choosing to act on any personal investment decisions.
